bitfinex-derivatives/quotes_SOLF0:USTF0_20250125
["timestamp","ask_amount","ask_price","bid_price","bid_amount"]
[1737782765413,5.46505585,248.9,248.88,14.90093781]
[1737782765414,5.49408628,248.9,248.88,14.90093781]
[1737782765614,5.4587375,249.05,248.89,14.90093781]
[1737782765813,2.52709817,249.04,248.92,4.0179]
[1737782766013,2.52709817,249.03,248.93,0.82000001]
[1737782766314,1.3009,249.07,248.93,0.82000001]
[1737782766510,2.52801361,249.06,248.93,0.82000001]
[1737782766718,0.02588926,249.02,248.98,0.03085094]
[1737782766917,2.52801361,249.01,248.98,0.03085094]
[1737782767117,0.02588926,249.02,248.98,0.03085094]
[1737782767317,2.52765272,249.01,248.98,0.03085094]
[1737782767921,4.0167,249.0,248.98,0.03085094]
[1737782769617,2.52933663,248.99,248.98,0.03085094]
[1737782769813,4.0173,248.96,248.87,4.83870001]
[1737782770418,1.3535,249.01,248.88,4.0185]
[1737782770419,4.017,248.98,248.88,4.0185]
[1737782770821,0.02581987,248.95,248.91,0.02894657]
[1737782773223,0.02581987,248.95,248.91,4.04694657]
[1737782773919,0.02581987,248.95,248.91,0.02894657]
[1737782776028,4.0177,248.94,248.91,0.02894657]
[1737782777324,0.02581987,248.95,248.91,0.02894657]
[1737782777627,4.0178,248.93,248.91,0.02894657]
[1737782779727,4.019,248.85,248.82,0.82000001]
[1737782780129,2.7236,248.94,248.82,0.82000001]
[1737782780435,2.52564983,248.93,248.82,0.82000001]
[1737782780633,2.52564983,248.92,248.82,0.82000001]
[1737782780831,0.02935691,248.9,248.85,0.02805554]
[1737782781330,4.0189,248.86,248.85,0.02805554]
[1737782781831,0.02935691,248.9,248.85,0.02805554]
[1737782782625,4.0186,248.88,248.85,0.02805554]
[1737782783334,4.0188,248.87,248.85,0.02805554]
[1737782785033,0.02935691,248.9,248.79,0.82000001]
[1737782785236,4.0198,248.8,248.79,0.82000001]
[1737782785635,1.3332,248.89,248.74,0.82000001]
[1737782785929,1.3332,248.89,248.78,14.90093781]
[1737782786326,0.02904155,248.86,248.81,0.02574549]
[1737782787229,4.0196,248.82,248.81,0.02574549]
[1737782787736,4.0196,248.82,248.78,2.28387529]
[1737782787935,0.02904155,248.86,248.74,14.90093781]
[1737782788130,1.3332,248.89,248.74,14.90093781]
[1737782788835,2.52765283,248.88,248.71,1.3502]
[1737782789136,4.0198,248.8,248.79,0.02865795]
[1737782790238,4.0197,248.81,248.79,0.02865795]
[1737782792130,4.0195,248.82,248.79,0.02865795]
[1737782795037,4.0197,248.81,248.79,0.02865795]
[1737782796440,4.0195,248.83,248.79,0.02865795]
[1737782796641,0.02925248,248.84,248.79,0.02865795]
[1737782797740,4.04855248,248.84,248.79,0.02865795]
[1737782797934,0.02925248,248.84,248.79,0.02865795]
[1737782799741,0.02925248,248.84,248.83,9.29932742]
[1737782800038,1.3689,248.98,248.83,9.29932742]
[1737782800240,2.53135594,248.97,248.86,9.29932742]
[1737782800442,2.53135594,248.96,248.86,9.29932742]
[1737782800743,1.3689,248.98,248.86,9.29932742]
[1737782800943,2.53241878,248.97,248.86,9.29932742]
[1737782801143,4.0178,248.93,248.9,0.02638578]
[1737782804646,4.0179,248.92,248.9,0.02638578]
[1737782806948,4.0179,248.92,248.9,8.578e-05]
[1737782807145,2.53551107,248.91,248.9,8.578e-05]
[1737782807350,2.53533541,248.91,248.9,8.578e-05]
[1737782807844,2.53533541,248.91,248.76,5.43687434]
[1737782808045,1.3689,248.98,248.8,14.87524768]
[1737782808249,2.53567879,248.97,248.8,14.87524768]
[1737782808449,2.53567879,248.96,248.8,14.87524768]
[1737782808645,1.3689,248.98,248.8,14.87524768]
[1737782808646,2.53567879,248.95,248.8,14.87524768]
[1737782808846,2.53567879,248.94,248.83,4.0193]
[1737782809046,0.02608976,248.9,248.85,0.02564816]
[1737782810246,0.02608976,248.9,248.87,4.0187]
[1737782810542,0.02608976,248.9,248.85,0.02564816]
[1737782810753,0.02608976,248.9,248.85,4.04454816]
[1737782811950,0.02608976,248.9,248.85,0.02564816]
[1737782812843,4.0174,248.96,248.88,14.87524768]
[1737782813254,1.3618,249.02,248.88,18.89374768]
[1737782813449,4.017,248.98,248.88,18.89374768]
[1737782813849,4.0171,248.97,248.88,18.89374768]
[1737782814054,0.02538503,248.95,248.91,0.02649395]
[1737782817352,0.02538503,248.95,248.92,4.0179]
[1737782817659,0.02538503,248.95,248.91,0.02649395]
[1737782818752,4.04288503,248.95,248.91,0.02649395]
[1737782819953,0.02538503,248.95,248.91,0.02649395]
[1737782820158,4.0177,248.93,248.91,0.02649395]
[1737782820760,4.0179,248.92,248.91,0.02649395]
[1737782821757,4.0188,248.87,248.81,1.2862]
[1737782822155,1.3662,248.94,248.81,1.2862]
[1737782822457,1.3723,249.03,248.81,1.2862]
[1737782822657,3.90480664,249.02,248.85,4.019]
[1737782822854,0.02824062,248.94,248.9,0.02940715]
[1737782823159,4.0178,248.93,248.9,0.02940715]
[1737782825460,0.02824062,248.94,248.9,0.02940715]
[1737782826459,0.02824062,248.94,248.9,4.04760715]
[1737782826658,0.02824062,248.94,248.93,9.29819647]
[1737782827465,12.25819647,249.12,248.93,9.29819647]
[1737782827763,2.53904318,249.07,248.97,9.29819647]
[1737782827962,4.0159,249.05,248.97,9.29819647]
[1737782828163,1.3992,249.11,249.0,9.29819647]
[1737782828664,0.02838995,249.08,249.03,0.02814562]
[1737782828864,4.04378995,249.08,249.03,0.02814562]
[1737782829165,4.04378995,249.08,249.03,9.32634209]
[1737782829664,4.04378995,249.08,249.03,0.02814562]
[1737782829859,4.04378995,249.08,249.0,4.0165]
[1737782830256,4.0155,249.07,248.95,14.85850013]
[1737782830462,14.85850013,249.15,248.96,4.0171]
[1737782830760,2.53362394,249.12,248.95,14.85850013]
[1737782831062,14.85850013,249.15,248.92,2.6159]
[1737782831063,0.03071175,249.07,248.92,2.6159]
[1737782831257,14.85850013,249.07,249.01,0.02604455]
[1737782831458,4.04528661,249.02,249.01,4.455e-05]
[1737782839766,1.3333,249.15,249.03,4.016]
[1737782841065,4.0154,249.08,249.01,4.01634455]
[1737782841372,0.02866518,249.1,249.01,4.01634455]
[1737782841573,4.0155,249.07,249.01,4.01634455]
[1737782841973,4.0155,249.07,249.01,4.455e-05]
[1737782842774,0.02866518,249.1,249.01,4.455e-05]
[1737782842975,4.0157,249.06,249.01,4.455e-05]
[1737782843471,0.02866518,249.1,249.01,4.455e-05]
[1737782843666,4.0162,249.03,249.01,4.455e-05]
[1737782846777,0.02727227,249.04,249.01,4.455e-05]
[1737782847673,4.04327227,249.04,249.01,4.455e-05]
[1737782848977,0.02727227,249.04,249.01,4.455e-05]
[1737782849775,0.02727227,249.04,249.03,9.28799639]
[1737782849972,10.58969639,249.2,249.03,9.28799639]
[1737782850180,2.53418893,249.19,249.03,9.28799639]
[1737782850380,2.53418893,249.18,249.05,9.28799639]
[1737782850577,2.53418893,249.17,249.05,9.28799639]
[1737782850774,4.0147,249.13,249.05,13.30379639]
[1737782850974,0.02618761,249.11,249.07,0.02909864]
[1737782852385,4.0152,249.09,249.07,0.02909864]
[1737782854494,0.02618761,249.11,249.07,0.02909864]
[1737782854689,4.04118761,249.11,249.07,0.02909864]
[1737782855192,0.02618761,249.11,249.07,0.02909864]
[1737782859995,4.04098761,249.11,249.07,0.02909864]
[1737782861193,4.0153,249.08,249.07,0.02909864]
[1737782865503,0.02618761,249.11,249.07,0.02909864]
[1737782867704,4.0153,249.09,249.07,0.02909864]
[1737782872305,2.53992412,249.08,248.96,9.28799639]
[1737782872609,9.28799639,249.14,248.99,9.28799639]
[1737782872810,2.54028613,249.13,248.99,9.28799639]
[1737782873008,2.54028613,249.12,248.99,9.28799639]
[1737782873207,2.54028613,249.11,248.99,9.28799639]
[1737782873510,0.02966357,249.08,249.03,0.02662924]
[1737782875112,4.0158,249.05,249.03,0.02662924]
[1737782877214,4.016,249.04,249.03,0.02662924]
[1737782878609,0.02966357,249.08,249.03,0.02662924]
[1737782878814,0.02966357,249.08,249.05,9.28799639]
[1737782880614,4.04496357,249.08,249.05,9.28799639]
[1737782882417,0.02966357,249.08,249.06,4.0156]
[1737782882814,0.02966357,249.08,249.05,9.28799639]
[1737782886920,4.0158,249.05,249.03,0.02662924]
[1737782888618,4.0156,249.07,249.03,0.02662924]
[1737782890422,0.02966357,249.08,249.05,9.28799639]
[1737782892525,0.02966357,249.08,249.04,9.28799639]
[1737782892727,4.015,249.1,249.04,9.28799639]
[1737782893726,0.02982101,249.09,249.05,0.0308983]
[1737782897528,0.02982101,249.09,249.08,9.28799639]
[1737782903635,4.0131,249.22,249.14,4.0143]
[1737782903833,2.5406731,249.21,249.14,9.28799639]
[1737782904030,2.5406731,249.2,249.15,4.0141]
[1737782904232,4.0129,249.23,249.15,4.0141]
[1737782904431,2.53951879,249.22,249.15,4.0141]
[1737782904633,0.02704594,249.21,249.17,0.03061551]
[1737782906232,0.02704594,249.21,249.17,4.04441551]
[1737782907138,0.02704594,249.21,249.18,9.28799639]
[1737782908939,0.02704594,249.21,249.19,4.0134]
[1737782911440,0.02704594,249.21,249.17,0.03061551]
[1737782912541,0.02704594,249.21,249.2,9.28799639]
[1737782913243,0.02704594,249.21,249.17,0.03061551]
[1737782913545,0.02704594,249.21,249.17,9.3186119]
[1737782914143,0.02704594,249.21,249.2,9.28799639]
[1737782915846,1.37,249.31,249.2,9.28799639]
[1737782916046,1.37,249.31,249.23,9.28799639]
[1737782917046,11.95999639,249.43,249.29,9.28799639]
[1737782917247,2.52887549,249.42,249.29,9.28799639]
[1737782917446,2.52887549,249.41,249.29,9.28799639]
[1737782917647,2.52887549,249.4,249.29,9.28799639]
[1737782917849,2.52887549,249.39,249.29,9.28799639]
[1737782918048,2.52887549,249.38,249.29,9.28799639]
[1737782918247,0.02926419,249.36,249.32,0.02693425]
[1737782918443,4.0111,249.35,249.32,0.02693425]
[1737782919154,4.0112,249.34,249.32,0.02693425]
[1737782927059,1.3463,249.35,249.32,0.02693425]
[1737782927258,4.0113,249.33,249.32,0.02693425]
[1737782932657,4.0113,249.33,249.32,5.95851641]
[1737782933061,0.02926419,249.36,249.32,5.95851641]
[1737782933262,0.02926419,249.36,249.34,5.93158216]
[1737782934859,4.0097,249.43,249.34,5.93158216]
[1737782935060,4.0097,249.43,249.42,5.93158216]
[1737782935462,4.0098,249.42,249.4,5.93158216]
[1737782937064,4.0098,249.42,249.39,0.0302614]
[1737782937264,9.94168216,249.41,249.39,6.14e-05]
[1737782942873,4.0101,249.41,249.39,6.14e-05]
[1737782943074,0.0294705,249.43,249.4,5.93158216]
[1737782943274,4.0392705,249.43,249.42,5.93158216]
[1737782945370,4.0099,249.42,249.4,5.93158216]
[1737782946673,0.0294705,249.43,249.4,5.93158216]
[1737782946873,0.0294705,249.43,249.42,5.93158216]
[1737782951566,58.87313689,249.53,249.42,5.93158216]
[1737782951771,4.0083,249.52,249.48,5.93158216]
[1737782952174,4.0083,249.52,249.5,5.93158216]
[1737782958983,4.0084,249.51,249.5,5.93158216]
[1737782964680,5.93158216,249.52,249.49,0.02963689]
[1737782964985,9.94018216,249.5,249.49,0.02963689]
[1737782966680,4.0086,249.5,249.49,0.02963689]
[1737782969090,0.02728416,249.53,249.49,0.02963689]
[1737782969285,4.0084,249.51,249.5,5.93158216]
[1737782971791,0.02728416,249.53,249.5,9.94008216]
[1737782971987,0.02728416,249.53,249.52,5.93158216]
[1737782977189,4.0064,249.64,249.56,4.0076]
[1737782977390,4.0064,249.64,249.63,5.93158216]
[1737782977890,4.0069,249.61,249.59,5.93158216]
[1737782978193,5.93158216,249.67,249.59,5.93158216]
[1737782978394,0.02960959,249.62,249.59,5.93158216]
[1737782980993,0.02960959,249.62,249.61,5.93158216]
[1737782995313,0.02960959,249.62,249.58,0.0291461]
[1737782996907,0.02960959,249.62,249.61,5.93158216]
[1737782998510,0.02960959,249.62,249.61,9.93838216]
[1737782999614,5.93158216,249.77,249.61,5.93158216]
[1737782999819,2.5355859,249.76,249.69,5.93158216]
[1737783000018,5.93158216,249.77,249.69,5.93158216]
[1737783000214,2.5355179,249.76,249.69,5.93158216]
[1737783000417,5.93158216,249.77,249.69,5.93158216]
[1737783000620,5.93158216,249.79,249.71,5.93158216]
[1737783000918,0.02942618,249.75,249.73,5.93158216]
[1737783001113,0.02942618,249.75,249.73,9.93638216]
[1737783003616,0.02942618,249.75,249.73,5.93158216]
[1737783004327,0.02942618,249.75,249.73,9.93638216]
[1737783004820,4.0032,249.84,249.73,5.93158216]
[1737783005016,4.0032,249.84,249.8,5.93158216]
[1737783005723,4.0029,249.86,249.82,5.93158216]
[1737783005923,0.02743816,249.84,249.82,5.93158216]
[1737783012425,4.0036,249.81,249.8,0.02812695]
[1737783012830,4.0036,249.81,249.8,5.95970911]
[1737783015126,4.0036,249.81,249.8,0.02812695]
[1737783015428,4.0046,249.75,249.74,5.93158216]
[1737783016425,4.0047,249.74,249.72,5.93158216]
[1737783016629,4.0047,249.74,249.72,5.95780674]
[1737783016937,4.0045,249.76,249.72,5.95780674]
[1737783017125,4.0045,249.76,249.74,5.93158216]
[1737783017625,4.0049,249.73,249.72,0.02622458]
[1737783023238,4.0049,249.73,249.72,2.458e-05]
[1737783024338,9.93648216,249.73,249.72,2.458e-05]
[1737783024834,4.0072,249.59,249.56,5.93158216]
[1737783025340,4.0071,249.6,249.54,5.93158216]
[1737783025638,5.93158216,249.65,249.58,5.93158216]
[1737783025838,5.93158216,249.63,249.56,5.93158216]
[1737783026038,5.93158216,249.63,249.59,0.02656588]
[1737783026734,9.93848216,249.61,249.59,0.02656588]
[1737783028342,9.93848216,249.61,249.59,6.588e-05]
[1737783029038,4.0069,249.61,249.59,6.588e-05]
[1737783030945,0.0301454,249.64,249.59,6.588e-05]
[1737783031441,3.2301454,249.64,249.59,6.588e-05]
[1737783032050,4.0068,249.61,249.59,6.588e-05]
[1737783033249,9.93838216,249.61,249.59,6.588e-05]
[1737783033746,14.26838216,249.61,249.59,6.588e-05]
[1737783034947,20.43838216,249.61,249.59,6.588e-05]
[1737783036949,14.5068,249.61,249.59,6.588e-05]
[1737783038651,17.7068,249.61,249.59,6.588e-05]
[1737783039558,5.93158216,249.6,249.59,6.588e-05]
[1737783040052,5.93158216,249.6,249.46,5.93158216]
[1737783040252,5.93158216,249.53,249.46,5.93158216]
[1737783041056,0.02832902,249.52,249.47,0.03016099]
[1737783042057,4.0085,249.51,249.47,0.03016099]
[1737783042265,0.02832902,249.52,249.47,0.03016099]
[1737783042454,0.02832902,249.52,249.5,5.93158216]
[1737783043658,0.02832902,249.52,249.48,9.25129103]
[1737783045761,0.02832902,249.52,249.47,0.03016099]
[1737783046958,0.02832902,249.52,249.48,9.25129103]
[1737783048159,0.02832902,249.52,249.48,13.26009103]
[1737783048360,0.02832902,249.52,249.48,9.25129103]
[1737783051263,4.03662902,249.52,249.48,9.25129103]
[1737783051761,7.23662902,249.52,249.48,9.25129103]
[1737783051961,7.23662902,249.52,249.47,0.03016099]
[1737783053767,12.94662902,249.52,249.47,0.03016099]
[1737783057462,4.0089,249.48,249.47,0.03016099]
[1737783057667,9.25129103,249.51,249.36,10.59369103]
[1737783058165,4.0091,249.47,249.36,10.59369103]
[1737783058470,15.64129103,249.51,249.36,10.59369103]
[1737783058865,0.02870583,249.46,249.41,0.03054753]
[1737783060068,4.0094,249.45,249.41,0.03054753]
[1737783060267,0.02870583,249.46,249.41,0.03054753]
[1737783060470,9.25129103,249.45,249.41,0.03054753]
[1737783060672,4.0099,249.42,249.41,4.753e-05]
[1737783062065,13.26119103,249.42,249.41,4.753e-05]
[1737783062271,4.0112,249.34,249.25,136.84402116]
[1737783062471,9.25129103,249.38,249.25,136.84402116]
[1737783063276,9.25129103,249.35,249.25,135.53092116]
[1737783063470,0.02787806,249.34,249.29,0.02872341]
[1737783064070,4.0118,249.3,249.29,0.02872341]
[1737783065373,0.02787806,249.34,249.29,0.02872341]
[1737783066176,4.0117,249.31,249.29,2.341e-05]
[1737783067076,1.2724,249.3,249.14,10.62149103]
[1737783067275,9.25129103,249.27,249.14,10.62149103]
[1737783067476,9.25129103,249.27,249.14,1.3702]
[1737783068377,0.02742376,249.23,249.18,0.02905452]
[1737783068974,4.0134,249.2,249.18,0.02905452]
[1737783070879,0.02742376,249.23,249.18,0.02905452]
[1737783070880,4.0132,249.22,249.18,0.02905452]
[1737783071078,0.02742376,249.23,249.18,0.02905452]
[1737783071275,0.02742376,249.23,249.2,4.0133]
[1737783071777,9.25129103,249.36,249.24,4.0126]
[1737783071981,4.0116,249.32,249.21,9.25129103]
[1737783072775,9.25129103,249.39,249.21,9.25129103]
[1737783073074,0.03078793,249.29,249.25,4.0126]
[1737783073274,12.45129103,249.39,249.21,9.25129103]
[1737783073484,0.02908253,249.29,249.24,0.0276662]
[1737783073982,0.02803785,249.29,249.24,0.02676449]
[1737783075985,0.02803785,249.29,249.25,4.0125]
[1737783076283,6.29803785,249.29,249.25,4.0125]
[1737783077184,6.29803785,249.29,249.24,9.27805552]
[1737783079183,6.29803785,249.29,249.25,4.0125]
[1737783081885,11.61803785,249.29,249.24,9.27805552]
[1737783082088,15.63003785,249.29,249.24,0.02676449]
[1737783082789,11.61803785,249.29,249.27,4.0122]
[1737783083185,11.61803785,249.29,249.27,13.26349103]
[1737783083983,11.61803785,249.29,249.24,0.02676449]
[1737783085091,4.0125,249.26,249.24,0.02676449]
[1737783085983,11.61803785,249.29,249.25,9.25129103]
[1737783086189,3.2,249.39,249.28,9.25129103]
[1737783086987,4.0107,249.37,249.29,4.0118]
[1737783087183,3.2,249.39,249.28,9.25129103]
[1737783087384,0.02695239,249.35,249.31,0.02776062]
[1737783088491,0.02695239,249.35,249.31,9.27905165]
[1737783089991,3.22695239,249.35,249.31,9.27905165]
[1737783091890,3.22695239,249.35,249.34,9.25129103]
[1737783092187,3.2,249.39,249.34,9.25129103]
[1737783092393,3.2,249.39,249.31,0.02776062]
[1737783092394,3.2,249.39,249.38,9.25129103]
[1737783092596,3.2,249.39,249.38,13.26179103]
[1737783092795,5.3709,249.47,249.38,9.25129103]
[1737783092991,52.18841505,249.52,249.42,9.25129103]
[1737783093191,0.0284283,249.45,249.42,9.25129103]
[1737783093396,0.0284283,249.45,249.42,13.26109103]
[1737783093397,5.3184283,249.45,249.42,13.26109103]
[1737783093593,5.3184283,249.45,249.42,9.25129103]
[1737783093997,7.6084283,249.45,249.42,9.25129103]
[1737783094299,7.29,249.48,249.42,9.25129103]
[1737783094498,2.661,249.63,249.47,9.25129103]
[1737783094693,4.0865,249.63,249.5,9.25129103]
[1737783095294,4.0074,249.58,249.54,0.02527018]
[1737783095698,7.91,249.58,249.54,0.02527018]
[1737783097091,17.16129103,249.58,249.44,9.25129103]
[1737783097294,9.25129103,249.55,249.41,9.25129103]
[1737783097491,4.0093,249.46,249.38,9.25129103]
[1737783097896,9.25129103,249.52,249.38,9.25129103]
[1737783098103,2.7881,249.51,249.38,9.25129103]
[1737783098401,0.02593843,249.47,249.43,0.02852785]
[1737783098696,4.0095,249.45,249.43,0.02852785]
[1737783098994,0.02593843,249.47,249.43,0.02852785]
[1737783099502,4.03513843,249.47,249.43,0.02852785]
[1737783100703,4.0094,249.45,249.43,0.02852785]
[1737783101304,0.02593843,249.47,249.43,0.02852785]
[1737783101501,0.02593843,249.47,249.44,9.25129103]
[1737783103098,0.02593843,249.47,249.45,4.0093]
[1737783103708,4.0079,249.54,249.45,14.80365041]
[1737783103894,7.91,249.58,249.49,14.80365041]
[1737783104394,7.91,249.58,249.49,18.81225041]
[1737783104899,0.02736914,249.56,249.51,0.03036432]
[1737783111007,3.63736914,249.56,249.51,4.03876432]
[1737783120011,6.83736914,249.56,249.51,4.03876432]
[1737783120903,6.83736914,249.56,249.53,14.80365041]
[1737783121609,6.83736914,249.56,249.54,4.0079]
[1737783122506,10.98736914,249.56,249.54,4.0079]
[1737783123104,10.98736914,249.56,249.51,0.03036432]
[1737783125510,10.98736914,249.56,249.55,4.0078]
[1737783125709,1.4609,249.64,249.55,9.24491929]
[1737783125915,4.0055,249.7,249.61,13.25151929]
[1737783126112,4.0055,249.7,249.48,133.2071444]
[1737783126113,2.7347,249.78,249.64,9.24491929]
[1737783126411,2.7347,249.78,249.53,2.68]
[1737783126412,4.0231,249.78,249.67,9.24491929]
[1737783126609,58.92641763,249.72,249.67,9.24491929]
[1737783126917,67.5410449,249.72,249.67,9.2734283]
[1737783127113,67.5410449,249.72,249.67,0.02850901]
[1737783128018,67.5410449,249.72,249.67,9.2734283]
[1737783128218,12.61972727,249.72,249.71,9.24491929]
[1737783129909,9.24491929,249.94,249.71,18.48983858]
[1737783130115,1.3617,249.87,249.79,9.24491929]
[1737783130320,1.3617,249.87,249.75,9.24491929]
[1737783130518,1.4095,249.86,249.75,9.24491929]
[1737783130719,4.0039,249.8,249.75,9.24491929]
[1737783130916,1.4095,249.86,249.75,9.24491929]
[1737783131117,3.23060883,249.8,249.75,9.27542294]
[1737783132116,7.23440883,249.8,249.75,9.27542294]
[1737783134622,4.0043,249.77,249.75,9.27542294]
[1737783134827,4.0043,249.77,249.75,0.03050365]
[1737783140527,3.23060883,249.8,249.75,0.03050365]
[1737783140734,5.05,249.86,249.78,9.24491929]
[1737783141031,5.05,249.86,249.85,9.24491929]
[1737783142032,5.05,249.86,249.83,0.02534493]
[1737783142234,3.91,249.86,249.81,9.24491929]
[1737783142531,3.91,249.86,249.82,0.02790622]
[1737783142731,3.91,249.86,249.84,9.24491929]
[1737783142732,4.0029,249.85,249.84,9.24491929]
[1737783142934,3.91,249.86,249.84,9.24491929]
[1737783143435,9.0528,249.86,249.84,9.24491929]
[1737783143828,5.05,249.86,249.84,9.24491929]
[1737783145637,5.05,249.86,249.84,13.24801929]
[1737783147436,5.05,249.86,249.84,9.24491929]
[1737783149737,4.0013,249.96,249.86,4.0028]
[1737783150037,4.0013,249.96,249.91,9.24491929]
[1737783151037,12.41114401,249.96,249.91,9.27542051]
[1737783151335,12.41114401,249.96,249.91,0.03050122]
[1737783151336,4.0018,249.93,249.91,0.03050122]
[1737783152634,8.40984401,249.96,249.91,0.03050122]
[1737783152937,8.40984401,249.96,249.91,9.27542051]
[1737783153534,12.41114401,249.96,249.91,9.27542051]
[1737783154836,4.0018,249.92,249.91,0.03050122]
[1737783155937,4.0017,249.93,249.91,0.03050122]
[1737783156437,8.40984401,249.96,249.91,9.27542051]
[1737783156641,4.0015,249.95,249.91,9.27542051]
[1737783156944,8.40984401,249.96,249.94,9.24491929]
[1737783157543,12.41104401,249.96,249.94,9.24491929]
[1737783158243,4.0017,249.93,249.91,0.03050122]
[1737783158542,8.40984401,249.96,249.87,9.24491929]
[1737783159538,8.40984401,249.96,249.89,0.02624414]
[1737783159839,8.40984401,249.96,249.93,9.24491929]
[1737783160338,8.40984401,249.96,249.93,13.24661929]
[1737783160744,8.40984401,249.96,249.93,9.24491929]
[1737783162042,8.40984401,249.96,249.9,9.24491929]
[1737783162239,8.40984401,249.96,249.89,0.02624414]
[1737783162445,4.0021,249.91,249.89,0.02624414]
[1737783164338,9.4321,249.91,249.89,0.02624414]
[1737783165042,4.0029,249.86,249.81,9.24491929]
[1737783165839,5.43,249.91,249.81,9.24491929]
[1737783166045,4.0031,249.84,249.81,9.24491929]
[1737783166744,4.0029,249.86,249.81,9.24491929]
[1737783167350,4.02856811,249.88,249.81,9.24491929]
[1737783168547,4.02856811,249.88,249.84,9.24491929]
[1737783168751,0.02606811,249.88,249.84,9.24491929]
[1737783169152,0.02606811,249.88,249.87,9.24491929]
[1737783170449,0.02606811,249.88,249.85,0.02997949]
[1737783173248,3.22606811,249.88,249.85,0.02997949]
[1737783174043,4.0027,249.87,249.85,0.02997949]
[1737783174951,4.004,249.79,249.75,9.24491929]
[1737783175153,2.6243,249.87,249.75,9.24491929]
[1737783175851,2.6243,249.87,249.75,13.24941929]
[1737783176052,0.02749257,249.83,249.79,0.0275159]
[1737783176546,4.0036,249.82,249.79,0.0275159]
[1737783176749,0.02749257,249.83,249.79,0.0275159]
[1737783178154,4.0036,249.81,249.79,0.0275159]
[1737783181653,0.02749257,249.83,249.68,9.24491929]
[1737783181851,4.0052,249.71,249.68,9.24491929]
[1737783182947,0.03053361,249.72,249.67,0.02554105]
[1737783183153,9.24491929,249.74,249.63,20.53933399]
[1737783183349,0.02955291,249.72,249.67,6.428e-05]
[1737783183750,4.0057,249.68,249.67,6.428e-05]
[1737783186754,5.46,249.69,249.67,6.428e-05]
[1737783189655,9.4656,249.69,249.67,6.428e-05]
[1737783198265,11.89291929,249.68,249.67,6.428e-05]
[1737783199563,2.648,249.68,249.67,6.428e-05]
[1737783205767,12.6656,249.69,249.67,6.428e-05]
[1737783211175,4.0057,249.68,249.67,6.428e-05]
[1737783221479,8.66,249.69,249.67,5.91484124]
[1737783221678,12.6655,249.69,249.67,5.91484124]
[1737783221878,8.66,249.69,249.67,5.91484124]
[1737783222178,8.66,249.69,249.67,9.92064124]
[1737783225882,0.02955291,249.72,249.7,4.0052]
[1737783226082,0.02955291,249.72,249.71,5.91477696]
[1737783228986,0.02955291,249.72,249.69,5.91477696]
[1737783229784,0.02955291,249.72,249.67,6.428e-05]
[1737783229986,4.03465291,249.72,249.67,6.428e-05]
[1737783230187,0.02955291,249.72,249.67,6.428e-05]
[1737783230886,0.02955291,249.72,249.68,4.0056]
[1737783231082,0.02955291,249.72,249.69,9.238127]
[1737783232692,6.03,249.74,249.71,4.0052]
[1737783232885,2.6432,249.88,249.73,9.238127]
[1737783233087,2.5452964,249.87,249.73,9.238127]
[1737783233284,2.5452964,249.86,249.73,9.238127]
[1737783233490,4.0038,249.8,249.74,4.0046]
[1737783233990,0.0279424,249.79,249.75,0.02869857]
[1737783236300,0.0279424,249.79,249.77,9.238127]
[1737783236999,0.0279424,249.79,249.77,13.242327]
[1737783240597,0.0279424,249.79,249.77,9.238127]
[1737783244006,9.238127,249.97,249.77,9.238127]
[1737783244208,2.6004,249.95,249.83,9.238127]
[1737783244400,4.0021,249.91,249.84,4.0031]
[1737783244607,2.6004,249.95,249.83,9.238127]
[1737783245406,4.02798951,249.91,249.87,0.02754644]
[1737783245604,4.02798951,249.91,249.86,9.238127]
[1737783245605,4.002,249.91,249.86,9.238127]
[1737783245800,0.02686251,249.91,249.87,0.02820026]
[1737783247707,0.02686251,249.91,249.89,9.238127]
[1737783248108,5.9,249.95,249.92,9.238127]
[1737783249312,5.9,249.95,249.92,13.239927]
[1737783249711,5.9,249.95,249.94,6.39112365]
[1737783250308,5.9,249.95,249.92,6.41816301]
[1737783251311,5.9,249.95,249.94,6.39112365]
[1737783254511,4.0015,249.94,249.92,6.41816301]
[1737783256112,4.0015,249.94,249.92,0.02703936]
[1737783258216,4.0015,249.94,249.92,6.41816301]
[1737783260520,9.5615,249.94,249.92,6.41816301]
[1737783260816,5.56,249.94,249.92,6.41816301]
[1737783262220,9.5615,249.94,249.92,6.41816301]
[1737783263420,4.0017,249.93,249.92,0.02703936]
[1737783263622,4.0017,249.93,249.92,3.936e-05]
[1737783266619,5.56,249.94,249.92,6.39116301]
[1737783272126,4.0,250.04,249.96,4.0011]
[1737783272322,4.0,250.04,250.02,6.39112365]
[1737783272525,2.7516,250.1,250.02,6.39112365]
[1737783272824,2.7516,250.1,249.78,473.81313145]